bitfinex/quotes_SOLUSD_20250611
["timestamp","ask_amount","ask_price","bid_price","bid_amount"]
[1749669084264,14.4243226,163.2,163.13,19.07613357]
[1749669084467,14.4243226,163.2,163.16,14.4243226]
[1749669086057,3.05633973,163.22,163.16,14.4243226]
[1749669086259,14.4243226,163.2,163.16,14.4243226]
[1749669086649,14.4243226,163.2,163.13,19.07613357]
[1749669086850,14.4243226,163.2,163.15,14.4243226]
[1749669087244,14.4243226,163.2,163.16,14.4243226]
[1749669087447,14.4243226,163.2,163.13,19.07613357]
[1749669087749,14.4243226,163.2,163.16,14.4243226]
[1749669088976,14.4243226,163.2,163.15,14.4243226]
[1749669090168,3.0428713,163.22,163.15,14.4243226]
[1749669090372,27.5901,163.23,163.17,14.4243226]
[1749669090567,6.5194,163.26,163.17,14.4243226]
[1749669090568,14.4243226,163.22,163.17,14.4243226]
[1749669090747,14.4243226,163.22,163.13,25.20612071]
[1749669090748,14.4243226,163.22,163.18,14.4243226]
[1749669090959,32.5194,163.26,163.18,14.4243226]
[1749669091158,32.5194,163.26,163.19,14.4243226]
[1749669091385,14.4243226,163.24,163.19,14.4243226]
[1749669091575,14.4243226,163.23,163.19,14.4243226]
[1749669092189,14.4243226,163.23,163.16,19.07613357]
[1749669092502,14.4243226,163.23,163.19,14.4243226]
[1749669092686,9.5668627,163.26,163.19,14.4243226]
[1749669092988,14.4243226,163.24,163.19,14.4243226]
[1749669094202,3.0474627,163.26,163.23,14.4243226]
[1749669094387,24.81414886,163.3,163.16,25.20491298]
[1749669094388,6.1645,163.3,163.22,14.4243226]
[1749669094567,14.4243226,163.26,163.19,27.6172]
[1749669094771,14.4243226,163.24,163.2,26.0]
[1749669095271,14.4243226,163.24,163.19,14.4243226]
[1749669096579,14.4243226,163.28,163.2,14.4243226]
[1749669096781,14.4243226,163.24,163.2,14.4243226]
[1749669097388,14.4243226,163.25,163.2,14.4243226]
[1749669097976,14.4243226,163.25,163.21,14.4243226]
[1749669098294,14.4243226,163.25,163.2,14.4243226]
[1749669099497,3.02376857,163.26,163.21,14.4243226]
[1749669099799,32.1645,163.3,163.23,14.4243226]
[1749669099977,14.4243226,163.27,163.2,0.42648471]
[1749669100182,14.4243226,163.26,163.22,14.4243226]
[1749669100397,14.4243226,163.26,163.21,33.07397146]
[1749669101104,14.4243226,163.26,163.22,14.4243226]
[1749669101900,3.10497115,163.28,163.22,14.4243226]
[1749669102212,14.4243226,163.26,163.22,14.4243226]
[1749669102401,6.1645,163.3,163.22,14.4243226]
[1749669102704,6.1645,163.3,163.2,26.94648471]
[1749669102705,14.4243226,163.25,163.2,26.94648471]
[1749669103009,14.4243226,163.25,163.2,41.37080731]
[1749669103306,14.4243226,163.25,163.21,14.4243226]
[1749669104105,43.50554553,163.28,163.19,26.0]
[1749669104308,14.4243226,163.23,163.19,66.9443226]
[1749669104694,43.50554553,163.28,163.19,40.4243226]
[1749669104996,14.4243226,163.23,163.18,0.42648471]
[1749669105182,14.4243226,163.22,163.18,0.42648471]
[1749669105497,14.4243226,163.22,163.18,14.85080731]
[1749669106983,14.4243226,163.22,163.17,85.59397146]
[1749669107184,1.6036,163.26,163.17,85.59397146]
[1749669107385,14.4243226,163.22,163.17,85.59397146]
[1749669107605,1.6036,163.26,163.17,59.07397146]
[1749669107884,14.4243226,163.22,163.17,59.07397146]
[1749669108212,1.6036,163.26,163.17,59.07397146]
[1749669108413,14.4243226,163.22,163.18,14.4243226]
[1749669109688,14.4243226,163.22,163.17,71.16964886]
[1749669109883,14.4243226,163.22,163.18,14.4243226]
[1749669110599,14.4243226,163.19,163.12,11.41510901]
[1749669110803,14.4243226,163.18,163.14,18.64964886]
[1749669111003,14.4243226,163.18,163.13,40.4243226]
[1749669111302,14.4243226,163.15,163.11,33.07397146]
[1749669111493,14.4243226,163.15,163.11,45.16964886]
[1749669111690,14.4243226,163.15,163.1,1.502]
[1749669111888,14.4243226,163.15,163.11,14.4243226]
[1749669112289,14.4243226,163.15,163.1,68.4263226]
[1749669112807,14.4243226,163.14,163.09,32.8]
[1749669113109,14.4243226,163.14,163.09,47.2243226]
[1749669114623,14.4243226,163.14,163.09,20.7243226]
[1749669114922,14.4243226,163.14,163.09,47.2443226]
[1749669115211,15.9859226,163.2,163.09,47.2443226]
[1749669115420,14.4243226,163.14,163.09,47.2443226]
[1749669116720,14.4243226,163.14,163.09,20.7243226]
[1749669116890,14.4243226,163.14,163.09,47.2243226]
[1749669117503,14.4243226,163.14,163.09,32.8]
[1749669117698,14.4243226,163.14,163.09,47.2243226]
[1749669119115,14.4243226,163.14,163.1,14.4243226]
[1749669119495,15.9859226,163.2,163.1,14.4243226]
[1749669119688,14.4243226,163.14,163.1,14.4243226]
[1749669119888,14.4243226,163.13,163.09,32.8]
[1749669120098,14.4243226,163.14,163.09,47.2243226]
[1749669120405,15.9859226,163.2,163.1,14.4243226]
[1749669120610,14.4243226,163.15,163.11,14.4243226]
[1749669120808,14.4243226,163.14,163.1,14.4243226]
[1749669121204,15.9859226,163.2,163.1,14.4243226]
[1749669121410,14.4243226,163.14,163.1,14.4243226]
[1749669121716,14.4243226,163.14,163.09,47.2243226]
[1749669121900,15.9859226,163.2,163.09,6.3]
[1749669122091,14.4243226,163.13,163.1,26.5]
[1749669123819,15.9859226,163.2,163.1,26.5]
[1749669124006,14.4243226,163.14,163.1,40.9243226]
[1749669124409,15.9859226,163.2,163.1,40.9243226]
[1749669124605,14.4243226,163.14,163.1,40.9243226]
[1749669124915,14.4243226,163.14,163.1,26.5]
[1749669125126,14.4243226,163.12,163.09,6.3]
[1749669125291,6.4478,163.16,163.08,52.5]
[1749669125496,14.4243226,163.11,163.08,26.0]
[1749669125799,6.4478,163.16,163.08,26.0]
[1749669125800,14.4243226,163.12,163.08,26.0]
[1749669126902,14.4243226,163.12,163.08,40.4243226]
[1749669127222,14.4243226,163.12,163.08,66.9243226]
[1749669127605,14.4243226,163.12,163.08,52.5]
[1749669128018,14.4243226,163.12,163.08,66.9243226]
[1749669128927,14.4243226,163.12,163.08,52.5]
[1749669131417,14.4243226,163.12,163.08,26.0]
[1749669131916,14.4243226,163.12,163.08,40.4243226]
[1749669135834,14.4243226,163.14,163.1,14.4243226]
[1749669136036,14.4243226,163.15,163.11,14.4243226]
[1749669136336,14.4243226,163.18,163.13,14.4243226]
[1749669136921,14.4243226,163.19,163.14,14.4243226]
[1749669137424,7.8879,163.2,163.14,14.4243226]
[1749669137817,14.4243226,163.19,163.13,14.4243226]
[1749669138031,14.4243226,163.18,163.13,14.4243226]
[1749669138750,14.4243226,163.18,163.12,19.07613357]
[1749669138931,14.4243226,163.18,163.13,14.4243226]
[1749669139241,14.4243226,163.17,163.12,33.50045617]
[1749669140546,14.4243226,163.18,163.13,14.4243226]
[1749669143151,14.4243226,163.17,163.13,14.4243226]
[1749669144453,7.8879,163.2,163.13,14.4243226]
[1749669144630,14.4243226,163.17,163.13,14.4243226]
[1749669145045,14.4243226,163.18,163.14,14.4243226]
[1749669145247,14.4243226,163.18,163.12,19.07613357]
[1749669145445,14.4243226,163.19,163.14,14.4243226]
[1749669145748,14.4243226,163.2,163.12,25.20651671]
[1749669145946,14.4243226,163.22,163.17,14.4243226]
[1749669148336,14.4243226,163.22,163.14,71.55613357]
[1749669148648,33.7341,163.25,163.14,71.55613357]
[1749669148649,14.4243226,163.21,163.16,14.4243226]
[1749669149162,14.4243226,163.17,163.11,26.0]
[1749669149477,14.4243226,163.16,163.12,33.07397146]
[1749669149636,14.4243226,163.15,163.1,25.83943161]
[1749669149957,14.4243226,163.2,163.1,25.83943161]
[1749669149958,14.4243226,163.14,163.1,14.4243226]
[1749669150340,14.4243226,163.14,163.09,40.4243226]
[1749669150557,14.4243226,163.14,163.1,14.4243226]
[1749669150734,14.4243226,163.15,163.1,14.4243226]
[1749669151437,14.4243226,163.16,163.11,14.4243226]
[1749669151839,14.4243226,163.15,163.1,33.50045617]
[1749669152430,14.4243226,163.16,163.11,14.4243226]
[1749669152634,14.4243226,163.15,163.1,33.50045617]
[1749669152863,7.7341,163.18,163.1,33.50045617]
[1749669153036,8.0928,163.19,163.11,14.4243226]
[1749669153353,8.0928,163.19,163.14,14.4243226]
[1749669153660,14.4243226,163.18,163.13,14.4243226]
[1749669154782,0.14216157,163.23,163.13,14.4243226]
[1749669154783,6.515,163.23,163.14,19.07613357]
[1749669154959,14.4243226,163.21,163.14,19.07613357]
[1749669155260,6.515,163.23,163.17,14.4243226]
[1749669155635,14.4243226,163.21,163.17,14.4243226]
[1749669155835,14.4243226,163.22,163.17,14.4243226]
[1749669156133,14.4243226,163.19,163.14,19.07613357]
[1749669156334,14.4243226,163.19,163.14,33.50045617]
[1749669157757,14.4243226,163.2,163.15,14.4243226]
[1749669161668,14.4243226,163.19,163.15,14.4243226]
[1749669162072,6.515,163.23,163.14,19.07613357]
[1749669162283,14.4243226,163.19,163.14,33.50045617]
[1749669162680,6.515,163.23,163.14,19.07613357]
[1749669162885,6.515,163.23,163.17,14.4243226]
[1749669163089,6.515,163.23,163.15,14.4243226]
[1749669163298,14.4243226,163.2,163.15,14.4243226]
[1749669163660,14.4243226,163.2,163.16,14.4243226]
[1749669165582,6.515,163.23,163.16,14.4243226]
[1749669165789,14.4243226,163.21,163.16,14.4243226]
[1749669165961,6.515,163.23,163.17,14.4243226]
[1749669166164,27.6664,163.24,163.14,19.07613357]
[1749669166165,14.4243226,163.22,163.18,14.4243226]
[1749669166366,14.4243226,163.22,163.17,14.4243226]
[1749669166573,14.4243226,163.21,163.14,19.07613357]
[1749669166776,14.4243226,163.21,163.17,14.4243226]
[1749669166978,14.4243226,163.21,163.16,14.4243226]
[1749669167868,14.4243226,163.19,163.14,33.50045617]
[1749669168067,14.4243226,163.16,163.11,18.64964886]
[1749669168283,14.4243226,163.15,163.1,14.4243226]
[1749669168465,11.3624697,163.15,163.1,40.4243226]
[1749669168675,14.4243226,163.16,163.11,14.4243226]
[1749669169815,14.4243226,163.2,163.11,14.4243226]
[1749669170001,14.4243226,163.16,163.11,14.4243226]
[1749669170871,14.4243226,163.12,163.08,18.64964886]
[1749669171178,27.57,163.17,163.08,18.64964886]
[1749669171381,14.4243226,163.12,163.08,18.64964886]
[1749669171988,14.4243226,163.12,163.07,50.97073094]
[1749669172292,14.4243226,163.12,163.07,36.54640834]
[1749669172595,14.4243226,163.12,163.07,50.97073094]
[1749669173292,27.57,163.17,163.07,50.97073094]
[1749669173483,14.4243226,163.13,163.08,14.4243226]
[1749669174399,27.57,163.17,163.11,14.4243226]
[1749669174605,14.4243226,163.16,163.11,14.4243226]
[1749669174804,14.4243226,163.15,163.11,14.4243226]
[1749669175099,14.4243226,163.15,163.1,14.4243226]
[1749669176297,14.4243226,163.14,163.1,14.4243226]
[1749669176706,14.4243226,163.13,163.09,14.4243226]
[1749669176907,14.4243226,163.12,163.08,33.07397146]
[1749669177317,27.57,163.17,163.08,33.07397146]
[1749669177610,14.4243226,163.12,163.08,33.07397146]
[1749669178112,14.4243226,163.13,163.08,33.07397146]
[1749669178320,14.4243226,163.12,163.08,33.07397146]
[1749669179014,27.57,163.17,163.08,33.07397146]
[1749669179216,14.4243226,163.12,163.08,33.07397146]
[1749669179518,14.4243226,163.1,163.07,10.54640834]
[1749669179695,27.57,163.17,163.07,10.54640834]
[1749669179696,14.4243226,163.08,163.07,10.54640834]
[1749669180014,14.4243226,163.09,163.07,10.54640834]
[1749669181822,14.4243226,163.08,163.07,10.54640834]
[1749669184104,26.0,163.14,163.07,10.54640834]
[1749669184304,14.4243226,163.09,163.07,10.54640834]
[1749669187931,14.4243226,163.1,163.07,10.54640834]
[1749669188103,14.4243226,163.09,163.07,10.54640834]
[1749669188300,26.0,163.14,163.07,10.54640834]
[1749669188529,14.4243226,163.09,163.07,10.54640834]
[1749669189614,14.4243226,163.09,163.04,14.4243226]
[1749669190205,26.0,163.14,163.04,14.4243226]
[1749669190206,14.4243226,163.08,163.04,18.64964886]
[1749669190402,14.4243226,163.08,163.04,43.79766051]
[1749669190725,14.4243226,163.12,163.04,43.79766051]
[1749669190726,14.4243226,163.07,163.04,10.72368905]
[1749669190917,14.4243226,163.08,163.04,10.72368905]
[1749669191420,3.1376095,163.12,163.04,43.79766051]
[1749669191617,14.4243226,163.09,163.04,43.79766051]
[1749669191817,26.0,163.14,163.04,43.79766051]
[1749669192033,26.0,163.14,163.05,14.4243226]
[1749669192423,14.4243226,163.12,163.07,14.4243226]
[1749669192735,14.4243226,163.12,163.08,14.4243226]
[1749669194138,14.4243226,163.13,163.08,14.4243226]
[1749669194337,3.00682473,163.14,163.09,14.4243226]
[1749669194512,14.4243226,163.13,163.09,14.4243226]
[1749669195419,26.0,163.15,163.09,14.4243226]
[1749669195739,14.4243226,163.13,163.09,14.4243226]
[1749669196236,14.4243226,163.13,163.08,19.07613357]
[1749669196418,26.0,163.15,163.09,14.4243226]
[1749669196936,14.4243226,163.12,163.07,26.44]
[1749669197140,14.4243226,163.11,163.06,33.07397146]
[1749669197341,14.4243226,163.08,163.04,98.02368905]
[1749669197521,14.4243226,163.08,163.04,10.72368905]
[1749669197729,14.4243226,163.12,163.04,10.72368905]
[1749669197730,14.4243226,163.09,163.04,25.14801165]
[1749669199354,26.0,163.14,163.04,10.72368905]
[1749669199521,14.4243226,163.08,163.04,25.14801165]
[1749669200423,26.0,163.14,163.04,25.14801165]
[1749669200646,14.4243226,163.09,163.04,25.14801165]
[1749669201417,26.0,163.13,163.04,25.14801165]
[1749669201756,14.4243226,163.09,163.04,25.14801165]
[1749669204057,14.4243226,163.09,163.05,14.4243226]
[1749669204572,26.0,163.14,163.05,14.4243226]
[1749669204884,14.4243226,163.09,163.04,10.72368905]
[1749669205070,14.4243226,163.09,163.04,25.14801165]
[1749669205368,14.4243226,163.09,163.05,14.4243226]
[1749669208072,14.4243226,163.14,163.08,14.4243226]
[1749669208268,14.4243226,163.14,163.09,14.4243226]
[1749669208768,3.039465,163.17,163.1,33.50045617]
[1749669208965,14.4243226,163.15,163.1,33.07397146]
[1749669209268,14.4243226,163.14,163.1,33.07397146]
[1749669209963,14.4243226,163.14,163.09,14.4243226]
[1749669211361,14.4243226,163.14,163.1,14.4243226]
[1749669211562,14.4243226,163.15,163.1,14.4243226]
[1749669211765,14.4243226,163.14,163.08,19.07613357]
[1749669211994,14.4243226,163.14,163.1,14.4243226]
[1749669214089,14.4243226,163.13,163.09,14.4243226]
[1749669217393,14.4243226,163.14,163.1,14.4243226]
[1749669217686,14.4243226,163.14,163.09,14.4243226]
[1749669218096,14.4243226,163.13,163.09,14.4243226]
[1749669218278,14.4243226,163.13,163.08,18.64964886]
[1749669218682,14.4243226,163.13,163.09,14.4243226]
[1749669218886,29.0008762,163.17,163.09,14.4243226]
[1749669219207,14.4243226,163.14,163.09,14.4243226]
[1749669220606,14.4243226,163.13,163.07,26.44]
[1749669220819,14.4243226,163.09,163.04,10.72368905]
[1749669220980,14.4243226,163.12,163.04,51.56801165]
[1749669221177,14.4243226,163.1,163.05,33.07397146]
[1749669221505,14.4243226,163.1,163.04,63.14368905]
[1749669221506,14.4243226,163.1,163.06,14.4243226]
[1749669222584,14.4243226,163.1,163.05,19.07613357]
[1749669222809,14.4243226,163.1,163.06,14.4243226]
[1749669225909,14.4243226,163.12,163.08,14.4243226]
[1749669226297,14.4243226,163.13,163.08,14.4243226]
[1749669226499,1.6447,163.16,163.09,14.4243226]
[1749669226716,14.4243226,163.14,163.1,14.4243226]
[1749669227193,14.4243226,163.14,163.09,14.4243226]
[1749669230821,14.4243226,163.14,163.05,123.92430999]
[1749669230822,14.4243226,163.14,163.1,14.4243226]
[1749669231421,14.4243226,163.14,163.09,14.4243226]
[1749669232715,1.6447,163.16,163.09,14.4243226]
[1749669232922,14.4243226,163.14,163.09,14.4243226]
[1749669234128,14.4243226,163.14,163.08,19.07613357]
[1749669234329,14.4243226,163.14,163.09,14.4243226]
[1749669234830,1.6447,163.16,163.1,14.4243226]
[1749669235031,14.4243226,163.15,163.1,14.4243226]
[1749669235214,3.0008762,163.17,163.14,14.4243226]
[1749669235416,14.4243226,163.19,163.14,14.4243226]
[1749669235632,14.4243226,163.17,163.1,44.64964886]
[1749669235817,14.4243226,163.15,163.09,19.07613357]
[1749669236126,14.4243226,163.14,163.09,33.50045617]
[1749669236510,14.4243226,163.14,163.09,19.07613357]
[1749669236834,14.4243226,163.14,163.09,33.50045617]
[1749669237017,14.4243226,163.13,163.07,26.0]
[1749669237219,14.4243226,163.13,163.08,14.4243226]
[1749669237722,9.61669382,163.17,163.09,14.4243226]
[1749669237929,14.4243226,163.15,163.1,14.4243226]
[1749669240330,14.4243226,163.14,163.09,14.4243226]
[1749669240535,14.4243226,163.14,163.08,18.64964886]
[1749669240834,14.4243226,163.14,163.09,14.4243226]
[1749669243620,14.4243226,163.15,163.1,14.4243226]
[1749669243816,14.4243226,163.15,163.11,14.4243226]
[1749669244328,14.4243226,163.16,163.11,14.4243226]
[1749669245341,14.4243226,163.15,163.1,14.4243226]
[1749669246427,14.4243226,163.15,163.09,0.42648471]
[1749669246736,14.4243226,163.15,163.1,14.4243226]
[1749669248853,14.4243226,163.15,163.09,0.42648471]
[1749669249050,14.4243226,163.15,163.1,14.4243226]
[1749669249654,14.4243226,163.15,163.11,14.4243226]
[1749669250743,9.61669382,163.17,163.11,14.4243226]
[1749669250944,14.4243226,163.15,163.11,14.4243226]
[1749669251354,14.4243226,163.15,163.1,14.4243226]
[1749669251553,9.61669382,163.17,163.1,14.4243226]
[1749669251757,9.61669382,163.17,163.11,14.4243226]
[1749669252049,14.4243226,163.16,163.11,14.4243226]
[1749669252656,14.4243226,163.15,163.1,14.4243226]
[1749669259563,14.4243226,163.15,163.09,0.42648471]
[1749669259870,14.4243226,163.15,163.1,14.4243226]
[1749669260870,26.0,163.17,163.11,14.4243226]
[1749669261169,14.4243226,163.16,163.11,14.4243226]
[1749669264265,14.4243226,163.16,163.09,0.42648471]
[1749669264574,14.4243226,163.16,163.11,14.4243226]
[1749669265070,14.3443226,163.16,163.11,14.4243226]
[1749669265573,29.10767581,163.17,163.11,14.4243226]
[1749669265775,14.4243226,163.16,163.11,14.4243226]
[1749669268173,14.4243226,163.16,163.09,0.42648471]
[1749669268358,14.4243226,163.16,163.11,14.4243226]
[1749669268555,14.4243226,163.15,163.09,0.42648471]
[1749669269170,14.4243226,163.15,163.11,18.64964886]
[1749669270458,29.10767581,163.17,163.11,18.64964886]
[1749669270655,14.4243226,163.16,163.11,33.07397146]
[1749669273376,29.10767581,163.17,163.11,33.07397146]
[1749669273678,14.4243226,163.16,163.11,33.07397146]
[1749669274684,29.10767581,163.17,163.11,33.07397146]
[1749669274852,14.4243226,163.16,163.11,33.07397146]
[1749669275356,9.22638151,163.16,163.11,9.22638151]
[1749669276876,35.22638151,163.17,163.12,9.22638151]
[1749669278396,26.0,163.17,163.09,1.96178471]
[1749669278691,9.22638151,163.16,163.11,9.22638151]
[1749669279078,9.22638151,163.16,163.12,18.64964886]
[1749669279897,35.22638151,163.17,163.12,18.64964886]
[1749669280708,35.22638151,163.17,163.12,27.87603037]
[1749669281996,9.22638151,163.18,163.13,9.22638151]
[1749669282202,9.22638151,163.19,163.12,18.64964886]
[1749669282420,9.22638151,163.18,163.13,9.22638151]
[1749669287212,9.22638151,163.17,163.12,18.64964886]
[1749669287516,9.22638151,163.17,163.13,9.22638151]
[1749669288489,9.22638151,163.18,163.13,9.22638151]
[1749669288909,9.22638151,163.18,163.14,9.22638151]
[1749669289612,9.22638151,163.17,163.13,9.22638151]
[1749669290205,3.03070235,163.19,163.13,9.22638151]
[1749669290404,9.22638151,163.17,163.13,9.22638151]
[1749669290587,1.6203,163.2,163.13,9.22638151]
[1749669290785,9.22638151,163.17,163.13,9.22638151]
[1749669291025,9.22638151,163.16,163.12,27.87603037]
[1749669291191,9.22638151,163.16,163.12,18.64964886]
[1749669291627,9.22638151,163.16,163.12,27.87603037]
[1749669292503,1.6203,163.2,163.12,27.87603037]
[1749669292716,9.22638151,163.17,163.12,27.87603037]
[1749669294451,1.6203,163.2,163.12,27.87603037]
[1749669294745,9.22638151,163.17,163.12,27.87603037]
[1749669295142,9.22638151,163.18,163.13,9.22638151]
[1749669295467,1.6203,163.2,163.14,9.22638151]
[1749669295653,9.22638151,163.19,163.14,9.22638151]
[1749669297532,1.6203,163.2,163.14,9.22638151]
[1749669297722,9.22638151,163.19,163.14,9.22638151]
[1749669299736,9.22638151,163.19,163.14,18.64964886]
[1749669299913,9.22638151,163.19,163.14,27.87603037]
[1749669301357,9.22638151,163.16,163.12,7.63897904]
[1749669301559,9.22638151,163.15,163.11,27.87603037]
[1749669301854,38.52582604,163.2,163.11,27.87603037]
[1749669301855,9.22638151,163.17,163.12,9.22638151]
[1749669302356,9.22638151,163.17,163.13,9.22638151]
[1749669303059,4.6801438,163.2,163.13,9.22638151]
[1749669303352,9.22638151,163.17,163.13,9.22638151]
[1749669304059,9.22638151,163.17,163.12,7.63897904]
[1749669304241,9.22638151,163.17,163.13,9.22638151]
[1749669304440,4.6801438,163.2,163.13,9.22638151]
[1749669304641,9.22638151,163.17,163.13,9.22638151]
[1749669304856,9.22638151,163.17,163.12,9.22638151]
[1749669305736,9.22638151,163.18,163.13,9.22638151]
[1749669306346,9.22638151,163.17,163.13,9.22638151]
[1749669307855,9.22638151,163.18,163.13,9.22638151]
[1749669308763,9.22638151,163.19,163.14,9.22638151]
[1749669308979,32.0031,163.21,163.16,9.22638151]
[1749669309171,9.22638151,163.22,163.17,9.22638151]
[1749669309858,9.22638151,163.23,163.18,9.22638151]
[1749669310483,9.22638151,163.22,163.18,9.22638151]
[1749669310680,9.22638151,163.22,163.16,18.64964886]
[1749669310982,9.22638151,163.2,163.16,9.22638151]
[1749669311181,9.22638151,163.2,163.15,9.22638151]
[1749669311483,9.22638151,163.18,163.13,87.81500941]
[1749669311682,9.22638151,163.19,163.14,9.22638151]
[1749669312184,9.22638151,163.17,163.12,16.86536055]
[1749669312392,9.22638151,163.18,163.14,9.22638151]
[1749669313384,14.41187006,163.18,163.14,14.41187006]
[1749669313776,14.41187006,163.18,163.13,14.41187006]
[1749669314877,26.0,163.22,163.15,14.41187006]
[1749669315077,14.41187006,163.2,163.15,14.41187006]
[1749669315773,14.41187006,163.21,163.16,14.41187006]
[1749669316883,14.41187006,163.2,163.15,14.41187006]
[1749669317485,14.41187006,163.16,163.13,7.63897904]
[1749669317780,14.41187006,163.15,163.12,7.63897904]
[1749669317982,14.41187006,163.16,163.12,7.63897904]
[1749669318181,26.0,163.19,163.12,7.63897904]
[1749669318182,14.41187006,163.17,163.12,22.0508491]
[1749669318485,14.41187006,163.18,163.13,14.41187006]
[1749669319388,14.41187006,163.19,163.14,14.41187006]
[1749669319570,26.0,163.22,163.14,14.41187006]
[1749669319887,26.0,163.21,163.16,14.41187006]
[1749669320103,40.41187006,163.21,163.16,14.41187006]
[1749669321490,40.41187006,163.23,163.19,14.41187006]
[1749669321991,26.0,163.24,163.19,14.41187006]
[1749669322158,14.41187006,163.23,163.19,14.41187006]
[1749669322362,14.41187006,163.23,163.18,14.41187006]
[1749669322773,26.0,163.24,163.19,14.41187006]
[1749669323182,14.41187006,163.23,163.18,14.41187006]
[1749669323908,14.41187006,163.22,163.16,26.2886279]
[1749669324111,14.41187006,163.22,163.18,14.41187006]
[1749669324616,14.41187006,163.23,163.18,14.41187006]
[1749669325016,29.1120431,163.24,163.18,14.41187006]
[1749669325017,14.41187006,163.22,163.18,14.41187006]
[1749669325710,29.1120431,163.24,163.18,14.41187006]
[1749669325900,14.41187006,163.22,163.18,14.41187006]
[1749669328917,14.41187006,163.23,163.18,14.41187006]
[1749669330618,14.41187006,163.24,163.19,14.41187006]
[1749669330918,14.41187006,163.26,163.21,14.41187006]
[1749669331093,6.0087,163.28,163.22,14.41187006]
[1749669331292,14.41187006,163.27,163.23,14.41187006]
[1749669331803,6.0087,163.28,163.23,14.41187006]
[1749669332008,14.41187006,163.27,163.23,14.41187006]
[1749669332196,32.0087,163.28,163.23,14.41187006]
[1749669332405,14.41187006,163.27,163.23,14.41187006]
[1749669332618,32.0087,163.28,163.23,14.41187006]
[1749669333123,14.41187006,163.27,163.23,14.41187006]
[1749669333300,14.41187006,163.27,163.2,0.42648471]
[1749669333499,14.41187006,163.27,163.22,14.41187006]
[1749669333717,40.41187006,163.28,163.23,14.41187006]
[1749669333916,14.41187006,163.28,163.23,14.41187006]
[1749669334224,3.06552219,163.29,163.24,14.41187006]
[1749669334441,14.41187006,163.28,163.24,14.41187006]
[1749669334797,27.5681,163.31,163.24,14.41187006]
[1749669334998,27.5681,163.31,163.2,68.25289796]
[1749669334999,14.41187006,163.28,163.23,14.41187006]
[1749669335315,4.61726455,163.31,163.26,14.41187006]
[1749669335519,14.41187006,163.3,163.25,14.41187006]
[1749669337033,30.61726455,163.31,163.25,14.41187006]
[1749669337322,14.41187006,163.3,163.25,14.41187006]
[1749669337526,14.41187006,163.28,163.24,14.41187006]
[1749669339099,30.61726455,163.31,163.24,14.41187006]
[1749669339304,14.41187006,163.29,163.24,14.41187006]
[1749669341224,26.0,163.29,163.24,14.41187006]
[1749669341434,26.0,163.29,163.25,14.41187006]
[1749669342409,40.41187006,163.29,163.25,14.41187006]
[1749669342805,26.0,163.29,163.25,14.41187006]
[1749669343005,40.41187006,163.29,163.25,14.41187006]
[1749669343418,40.41187006,163.29,163.22,0.28432314]
[1749669343730,40.41187006,163.29,163.25,14.41187006]
[1749669344319,26.0,163.29,163.25,14.41187006]
[1749669344625,40.41187006,163.29,163.25,14.41187006]
[1749669344930,26.0,163.29,163.25,14.41187006]
[1749669346612,14.41187006,163.3,163.26,14.41187006]
[1749669349335,1.5681,163.31,163.26,14.41187006]
[1749669349508,14.41187006,163.3,163.26,14.41187006]
[1749669350151,14.41187006,163.3,163.25,14.41187006]
[1749669351722,14.41187006,163.3,163.21,7.93221869]
[1749669351723,14.41187006,163.3,163.26,14.41187006]
[1749669352720,1.5681,163.31,163.26,14.41187006]
[1749669352907,32.6503,163.32,163.29,14.41187006]
[1749669353632,32.6503,163.32,163.24,0.14216157]
[1749669353829,32.6503,163.32,163.29,14.41187006]
[1749669354048,32.6503,163.32,163.24,0.14216157]
[1749669354223,32.6503,163.32,163.28,14.41187006]
[1749669354429,47.06217006,163.32,163.24,0.14216157]
[1749669354627,14.41187006,163.31,163.27,14.41187006]
[1749669354830,32.6503,163.32,163.27,14.41187006]
[1749669355058,14.41187006,163.31,163.27,14.41187006]
[1749669355357,47.06217006,163.32,163.28,14.41187006]
[1749669355527,47.06217006,163.32,163.27,14.41187006]
[1749669356754,47.06217006,163.32,163.24,0.14216157]
[1749669356938,14.41187006,163.28,163.23,14.41187006]
[1749669357347,14.41187006,163.24,163.17,1.6487]
[1749669357535,14.41187006,163.23,163.18,14.41187006]
[1749669357956,26.22,163.24,163.19,14.41187006]
[1749669358134,40.63187006,163.24,163.19,14.41187006]
[1749669358330,40.63187006,163.24,163.17,0.42648471]
[1749669358635,40.63187006,163.24,163.19,14.41187006]
[1749669358844,26.22,163.24,163.19,14.41187006]
[1749669359044,26.22,163.24,163.21,14.41187006]
[1749669359444,26.22,163.24,163.2,14.41187006]
[1749669361651,40.63187006,163.24,163.2,14.41187006]
[1749669362466,26.22,163.24,163.2,14.41187006]
[1749669362665,26.22,163.24,163.21,14.41187006]
[1749669363174,26.22,163.24,163.17,6.55479581]
[1749669363175,26.22,163.24,163.17,19.07613357]